[Event "*** Titled Tuesday Blitz"]
[Site "Chess.com"]
[Date "2018.11.06"]
[Round "8"]
[White "IvanRadivojevic"]
[Black "ChainsOfFantasia"]
[Result "1-0"]
[WhiteElo "2409"]
[BlackElo "2341"]
[TimeControl "180+2"]
[EndTime "14:50:13 PST"]
[Termination "IvanRadivojevic won by resignation"]

1. e4 {[%clk 0:02:59.9]} 1... e6 {[%clk 0:02:52.6]} 2. d4 {[%clk 0:03:00.8]}
2... d5 {[%clk 0:02:54.5]} 3. Nc3 {[%clk 0:03:02]} 3... Bb4 {[%clk 0:02:50.9]}
4. e5 {[%clk 0:03:02.3]} 4... c5 {[%clk 0:02:46.4]} 5. a3 {[%clk 0:03:03.4]}
5... Bxc3+ {[%clk 0:02:44.6]} 6. bxc3 {[%clk 0:03:05.3]} 6... Qa5 {[%clk
0:02:45.9]} 7. Bd2 {[%clk 0:03:05.4]} 7... c4 {[%clk 0:02:42.3]} 8. h4 {[%clk
0:03:05.2]} 8... Qa4 {[%clk 0:02:42]} 9. h5 {[%clk 0:03:05.4]} 9... h6 {[%clk
0:02:38.9]} 10. Rh4 {[%clk 0:03:06.3]} 10... Ne7 {[%clk 0:02:38.7]} 11. Rf4
{[%clk 0:03:06.6]} 11... Nbc6 {[%clk 0:02:36.7]} 12. g4 {[%clk 0:03:06]} 12...
Bd7 {[%clk 0:02:20.5]} 13. Qf3 {[%clk 0:02:51.4]} 13... Rf8 {[%clk 0:01:59.7]}
14. Kd1 {[%clk 0:02:49.3]} 14... g5 {[%clk 0:01:44.1]} 15. hxg6 {[%clk
0:02:45.9]} 15... Nxg6 {[%clk 0:01:45.2]} 16. Rf6 {[%clk 0:02:46.3]} 16... O-O-O
{[%clk 0:01:23.5]} 17. Bxh6 {[%clk 0:02:40.9]} 17... Rh8 {[%clk 0:01:22.3]} 18.
Be3 {[%clk 0:02:30.3]} 18... Ngxe5 {[%clk 0:01:12.1]} 19. dxe5 {[%clk
0:02:28.2]} 19... Nxe5 {[%clk 0:01:14]} 20. Qf4 {[%clk 0:02:14]} 20... Rh1
{[%clk 0:00:56.5]} 21. Qxe5 {[%clk 0:02:09.2]} 21... Rxg1 {[%clk 0:00:57.6]} 22.
Kd2 {[%clk 0:02:10.1]} 22... Rxg4 {[%clk 0:00:45.7]} 23. Rxf7 {[%clk 0:01:55.4]}
23... Re4 {[%clk 0:00:46.4]} 24. Qd6 {[%clk 0:01:53.7]} 24... Qa5 {[%clk
0:00:38.3]} 25. Qc5+ {[%clk 0:01:51.2]} 25... Qxc5 {[%clk 0:00:38.6]} 26. Bxc5
{[%clk 0:01:52.6]} 26... b6 {[%clk 0:00:39.8]} 27. Be3 {[%clk 0:01:44.4]} 27...
e5 {[%clk 0:00:26.9]} 28. Bg2 {[%clk 0:01:42]} 28... Rg4 {[%clk 0:00:27.7]} 29.
Bh3 {[%clk 0:01:38.1]} 29... d4 {[%clk 0:00:21.6]} 30. Bxg4 {[%clk 0:01:02.1]}
30... dxe3+ {[%clk 0:00:21.4]} 31. Kxe3 {[%clk 0:01:04]} 31... Bxg4 {[%clk
0:00:22.1]} 32. Rg1 {[%clk 0:01:05.2]} 32... Bd7 {[%clk 0:00:15.5]} 33. Rgg7
{[%clk 0:01:04.7]} 33... Kc7 {[%clk 0:00:16.8]} 34. Ke4 {[%clk 0:01:04.9]} 34...
Kd6 {[%clk 0:00:17.8]} 35. Rxd7+ {[%clk 0:01:05.8]} 35... Rxd7 {[%clk
0:00:17.9]} 36. Rxd7+ {[%clk 0:01:07.7]} 36... Kxd7 {[%clk 0:00:19.7]} 37. Kxe5
{[%clk 0:01:09.6]} 1-0

[Event "*** Titled Tuesday Blitz"]
[Site "Chess.com"]
[Date "2018.11.06"]
[Round "8"]
[White "maximlavrov"]
[Black "BilodeauA"]
[Result "0-1"]
[WhiteElo "2617"]
[BlackElo "2854"]
[TimeControl "180+2"]
[EndTime "14:50:15 PST"]
[Termination "BilodeauA won by resignation"]

1. Nf3 {[%clk 0:03:01.9]} 1... d5 {[%clk 0:03:00.5]} 2. g3 {[%clk 0:03:03]} 2...
Nf6 {[%clk 0:03:00.1]} 3. Bg2 {[%clk 0:03:04.1]} 3... Bf5 {[%clk 0:03:01.8]} 4.
O-O {[%clk 0:03:05]} 4... c6 {[%clk 0:03:03.4]} 5. c4 {[%clk 0:03:06.1]} 5... e6
{[%clk 0:03:03.5]} 6. cxd5 {[%clk 0:03:07.3]} 6... exd5 {[%clk 0:03:04.1]} 7. d3
{[%clk 0:03:08.7]} 7... Na6 {[%clk 0:03:05.6]} 8. Nc3 {[%clk 0:03:09.6]} 8...
Be7 {[%clk 0:03:05.4]} 9. a3 {[%clk 0:03:07.6]} 9... O-O {[%clk 0:03:05.7]} 10.
Qc2 {[%clk 0:03:08.5]} 10... Nc5 {[%clk 0:02:43.4]} 11. b4 {[%clk 0:02:55.3]}
11... Ne6 {[%clk 0:02:44.6]} 12. e4 {[%clk 0:02:56.3]} 12... Bg6 {[%clk
0:02:42.9]} 13. Ne5 {[%clk 0:02:50.5]} 13... a5 {[%clk 0:02:43.4]} 14. Nxg6
{[%clk 0:02:49.4]} 14... hxg6 {[%clk 0:02:44.4]} 15. Rb1 {[%clk 0:02:48.6]}
15... axb4 {[%clk 0:02:44.7]} 16. axb4 {[%clk 0:02:50.1]} 16... Nd4 {[%clk
0:02:41]} 17. Qd1 {[%clk 0:02:50.7]} 17... Re8 {[%clk 0:02:20.8]} 18. Re1 {[%clk
0:02:41.1]} 18... Bf8 {[%clk 0:02:19.4]} 19. Be3 {[%clk 0:02:39.7]} 19... Ne6
{[%clk 0:02:19.4]} 20. exd5 {[%clk 0:02:40.3]} 20... cxd5 {[%clk 0:02:19.1]} 21.
d4 {[%clk 0:02:38.4]} 21... Ra3 {[%clk 0:02:12.5]} 22. Qc1 {[%clk 0:02:22.6]}
22... Ra8 {[%clk 0:02:06.9]} 23. h3 {[%clk 0:02:21.6]} 23... Qd7 {[%clk
0:02:02.3]} 24. Qd2 {[%clk 0:02:20.8]} 24... Rac8 {[%clk 0:01:59.9]} 25. Qd3
{[%clk 0:02:18]} 25... Ra8 {[%clk 0:01:38.8]} 26. Qc2 {[%clk 0:02:16.2]} 26...
Nc7 {[%clk 0:01:33]} 27. Qb3 {[%clk 0:02:16.6]} 27... Re6 {[%clk 0:01:30.1]} 28.
b5 {[%clk 0:02:02.4]} 28... b6 {[%clk 0:01:22.2]} 29. Ra1 {[%clk 0:01:59.5]}
29... Rae8 {[%clk 0:01:18.8]} 30. Ra7 {[%clk 0:02:00.3]} 30... Qd8 {[%clk
0:01:17.8]} 31. Ne2 {[%clk 0:01:50]} 31... Bd6 {[%clk 0:01:17.6]} 32. Rc1 {[%clk
0:01:50.2]} 32... Ne4 {[%clk 0:01:14.1]} 33. Nf4 {[%clk 0:01:49.4]} 33... Nxg3
{[%clk 0:00:58.7]} 34. Nxe6 {[%clk 0:01:47.5]} 34... Ne2+ {[%clk 0:00:59.4]} 35.
Kf1 {[%clk 0:01:46.7]} 35... Nxe6 {[%clk 0:01:00.7]} 36. Rca1 {[%clk 0:01:32.5]}
36... N2xd4 {[%clk 0:00:46.4]} 37. Qxd5 {[%clk 0:01:32.4]} 37... Nf5 {[%clk
0:00:37.6]} 38. Ra8 {[%clk 0:01:31.5]} 38... Nxe3+ {[%clk 0:00:26.4]} 39. fxe3
{[%clk 0:01:33.4]} 39... Qf6+ {[%clk 0:00:27.8]} 40. Qf3 {[%clk 0:01:34]} 40...
Kf8 {[%clk 0:00:14.4]} 41. Rxe8+ {[%clk 0:01:31.7]} 41... Kxe8 {[%clk
0:00:16.3]} 42. Qxf6 {[%clk 0:01:24.3]} 42... gxf6 {[%clk 0:00:17.5]} 0-1

[Event "*** Titled Tuesday Blitz"]
[Site "Chess.com"]
[Date "2018.11.06"]
[Round "8"]
[White "GMSrinath"]
[Black "Iyael"]
[Result "1-0"]
[WhiteElo "2807"]
[BlackElo "2052"]
[TimeControl "180+2"]
[EndTime "14:50:19 PST"]
[Termination "GMSrinath won on time"]

1. d4 {[%clk 0:03:01.9]} 1... Nf6 {[%clk 0:02:59.8]} 2. Nf3 {[%clk 0:03:03]}
2... g6 {[%clk 0:02:56.8]} 3. b3 {[%clk 0:03:01]} 3... d5 {[%clk 0:02:53.5]} 4.
e3 {[%clk 0:03:02.3]} 4... Bg7 {[%clk 0:02:54.2]} 5. Bb2 {[%clk 0:03:03.8]} 5...
O-O {[%clk 0:02:54.5]} 6. Nbd2 {[%clk 0:03:05.2]} 6... c6 {[%clk 0:02:55.2]} 7.
Be2 {[%clk 0:03:06.6]} 7... Nbd7 {[%clk 0:02:53.4]} 8. O-O {[%clk 0:03:06.2]}
8... Ne4 {[%clk 0:02:50.6]} 9. c4 {[%clk 0:03:07.1]} 9... Re8 {[%clk 0:02:39.9]}
10. Rc1 {[%clk 0:03:02.8]} 10... Nxd2 {[%clk 0:02:28.9]} 11. Nxd2 {[%clk
0:03:00.3]} 11... e5 {[%clk 0:02:27.6]} 12. cxd5 {[%clk 0:02:59.8]} 12... cxd5
{[%clk 0:02:27.4]} 13. dxe5 {[%clk 0:03:01]} 13... Nxe5 {[%clk 0:02:27.2]} 14.
Bd4 {[%clk 0:03:02.5]} 14... Bd7 {[%clk 0:02:14.5]} 15. Nf3 {[%clk 0:03:01.8]}
15... Bc6 {[%clk 0:01:57.3]} 16. Nxe5 {[%clk 0:02:57.2]} 16... Bxe5 {[%clk
0:01:57.4]} 17. Bxe5 {[%clk 0:02:58.6]} 17... Rxe5 {[%clk 0:01:58.7]} 18. Bf3
{[%clk 0:03:00.2]} 18... Qd7 {[%clk 0:01:52.9]} 19. Qd4 {[%clk 0:02:59]} 19...
Qe7 {[%clk 0:01:44.5]} 20. Rfd1 {[%clk 0:02:52.8]} 20... a6 {[%clk 0:01:42.9]}
21. Qc5 {[%clk 0:02:27.8]} 21... Qf6 {[%clk 0:01:17.6]} 22. Qd4 {[%clk 0:02:23]}
22... Rd8 {[%clk 0:01:12.4]} 23. h3 {[%clk 0:02:21.5]} 23... h5 {[%clk
0:01:10.8]} 24. Rc5 {[%clk 0:02:11.8]} 24... Qe7 {[%clk 0:01:04.9]} 25. Rdc1
{[%clk 0:02:10.5]} 25... Rf5 {[%clk 0:00:47.1]} 26. Be2 {[%clk 0:02:06.6]} 26...
Qe6 {[%clk 0:00:42.8]} 27. Bxa6 {[%clk 0:02:02.4]} 27... Rd6 {[%clk 0:00:32.5]}
28. Bb5 {[%clk 0:01:54.3]} 28... Re5 {[%clk 0:00:27]} 29. Bxc6 {[%clk
0:01:51.6]} 29... bxc6 {[%clk 0:00:27.2]} 30. Rxc6 {[%clk 0:01:50.4]} 30... Rxc6
{[%clk 0:00:21.5]} 31. Rxc6 {[%clk 0:01:52.3]} 31... Qxc6 {[%clk 0:00:19.8]} 32.
Qxe5 {[%clk 0:01:52.8]} 32... Qc1+ {[%clk 0:00:20.2]} 33. Kh2 {[%clk 0:01:53.9]}
33... Qd2 {[%clk 0:00:21.2]} 34. f3 {[%clk 0:01:43.5]} 34... h4 {[%clk
0:00:17.7]} 35. a4 {[%clk 0:01:35.5]} 35... Qd1 {[%clk 0:00:13.1]} 36. Qb8+
{[%clk 0:01:32.3]} 36... Kg7 {[%clk 0:00:12.4]} 37. a5 {[%clk 0:01:33.6]} 37...
Qe2 {[%clk 0:00:06.9]} 38. Qe5+ {[%clk 0:01:33.2]} 38... Kg8 {[%clk 0:00:07.4]}
39. b4 {[%clk 0:01:31.7]} 39... Qc4 {[%clk 0:00:05.2]} 40. Qb8+ {[%clk
0:01:30.1]} 40... Kg7 {[%clk 0:00:05.2]} 41. b5 {[%clk 0:01:31.7]} 1-0

[Event "*** Titled Tuesday Blitz"]
[Site "Chess.com"]
[Date "2018.11.06"]
[Round "8"]
[White "Koksik_13"]
[Black "Polish_fighter3000"]
[Result "1/2-1/2"]
[WhiteElo "2734"]
[BlackElo "2968"]
[TimeControl "180+2"]
[EndTime "14:50:21 PST"]
[Termination "Game drawn by repetition"]

1. e4 {[%clk 0:03:00.4]} 1... c5 {[%clk 0:03:00.8]} 2. c3 {[%clk 0:03:00.8]}
2... d5 {[%clk 0:03:00.4]} 3. exd5 {[%clk 0:03:01.5]} 3... Qxd5 {[%clk
0:03:02.3]} 4. d4 {[%clk 0:03:02.9]} 4... Nf6 {[%clk 0:03:03.8]} 5. Nf3 {[%clk
0:03:03.6]} 5... e6 {[%clk 0:03:05.4]} 6. Be2 {[%clk 0:03:04]} 6... cxd4 {[%clk
0:03:04]} 7. cxd4 {[%clk 0:03:03.6]} 7... Be7 {[%clk 0:03:03.5]} 8. Nc3 {[%clk
0:03:03.8]} 8... Qd6 {[%clk 0:03:04.8]} 9. O-O {[%clk 0:03:04.3]} 9... O-O
{[%clk 0:03:06.4]} 10. Ne5 {[%clk 0:02:59.9]} 10... Nc6 {[%clk 0:03:05.5]} 11.
Nxc6 {[%clk 0:02:56.2]} 11... bxc6 {[%clk 0:03:01.9]} 12. Be3 {[%clk 0:02:54.7]}
12... a5 {[%clk 0:03:02]} 13. Rc1 {[%clk 0:02:53.9]} 13... Ba6 {[%clk
0:02:57.6]} 14. Bxa6 {[%clk 0:02:46.7]} 14... Rxa6 {[%clk 0:02:59.5]} 15. Qe2
{[%clk 0:02:45.8]} 15... Raa8 {[%clk 0:02:59.2]} 16. Na4 {[%clk 0:02:43.2]}
16... Nd5 {[%clk 0:02:59]} 17. Nc5 {[%clk 0:02:41]} 17... a4 {[%clk 0:02:50.7]}
18. Rc4 {[%clk 0:02:38.4]} 18... Nb6 {[%clk 0:02:50]} 19. Rc2 {[%clk 0:02:38.2]}
19... Qd5 {[%clk 0:02:49.3]} 20. a3 {[%clk 0:02:34.1]} 20... Rfc8 {[%clk
0:02:42.5]} 21. Rfc1 {[%clk 0:02:33.7]} 21... h6 {[%clk 0:02:42.8]} 22. Nd3
{[%clk 0:02:34.2]} 22... Bd6 {[%clk 0:02:31]} 23. g3 {[%clk 0:02:19.3]} 23...
Qb5 {[%clk 0:02:23.5]} 24. Bf4 {[%clk 0:02:12.5]} 24... Bf8 {[%clk 0:02:10.3]}
25. Ne5 {[%clk 0:01:57.1]} 25... Qxe2 {[%clk 0:02:09.2]} 26. Rxe2 {[%clk
0:01:58.1]} 26... Nd5 {[%clk 0:01:34.5]} 27. Be3 {[%clk 0:01:53.9]} 27... Ra6
{[%clk 0:01:16.9]} 28. Rec2 {[%clk 0:01:50.8]} 28... Ne7 {[%clk 0:01:09.5]} 29.
Kf1 {[%clk 0:01:40.6]} 29... f6 {[%clk 0:01:09.1]} 30. Nd3 {[%clk 0:01:37.3]}
30... Nd5 {[%clk 0:01:10.3]} 31. Ke2 {[%clk 0:01:33.4]} 31... Kf7 {[%clk
0:01:09.3]} 32. Bd2 {[%clk 0:01:25.8]} 32... Ke8 {[%clk 0:01:09.5]} 33. Be3
{[%clk 0:01:26.8]} 33... Kd7 {[%clk 0:01:10.2]} 34. h4 {[%clk 0:01:26.9]} 34...
h5 {[%clk 0:01:06]} 35. Bd2 {[%clk 0:01:27.7]} 35... Bd6 {[%clk 0:01:04.5]} 36.
Rc4 {[%clk 0:01:23.6]} 36... Rb8 {[%clk 0:01:04.1]} 37. R1c2 {[%clk 0:00:59]}
37... Rb3 {[%clk 0:01:01.6]} 38. Rc1 {[%clk 0:00:59.8]} 38... Rb5 {[%clk
0:00:54.8]} 39. R1c2 {[%clk 0:01:00.2]} 39... Rb3 {[%clk 0:00:34.5]} 40. Rc1
{[%clk 0:01:00.8]} 40... Rb5 {[%clk 0:00:36]} 41. R1c2 {[%clk 0:00:58.7]} 41...
Rb3 {[%clk 0:00:36.6]} 1/2-1/2

[Event "*** Titled Tuesday Blitz"]
[Site "Chess.com"]
[Date "2018.11.06"]
[Round "8"]
[White "saikrishnaReturns"]
[Black "Gr3egor"]
[Result "0-1"]
[WhiteElo "2611"]
[BlackElo "2502"]
[TimeControl "180+2"]
[EndTime "14:50:24 PST"]
[Termination "Gr3egor won by checkmate"]

1. e4 {[%clk 0:03:01.9]} 1... c6 {[%clk 0:02:58.9]} 2. Nc3 {[%clk 0:03:02.4]}
2... d5 {[%clk 0:03:00.3]} 3. Nf3 {[%clk 0:03:04.1]} 3... Bg4 {[%clk 0:02:56.4]}
4. h3 {[%clk 0:03:04.8]} 4... Bxf3 {[%clk 0:02:57.3]} 5. Qxf3 {[%clk 0:03:06.7]}
5... e6 {[%clk 0:02:58.1]} 6. d3 {[%clk 0:03:08.1]} 6... Nd7 {[%clk 0:02:58.8]}
7. Be2 {[%clk 0:03:08.1]} 7... Ngf6 {[%clk 0:02:59.5]} 8. O-O {[%clk 0:03:09.3]}
8... Bd6 {[%clk 0:03:00.7]} 9. d4 {[%clk 0:03:03.4]} 9... dxe4 {[%clk
0:03:01.2]} 10. Nxe4 {[%clk 0:03:05.3]} 10... Nxe4 {[%clk 0:03:02.7]} 11. Qxe4
{[%clk 0:03:07.2]} 11... Nf6 {[%clk 0:03:04.3]} 12. Qh4 {[%clk 0:03:07.9]} 12...
Be7 {[%clk 0:03:03.7]} 13. Bd3 {[%clk 0:03:06.6]} 13... h6 {[%clk 0:03:03.1]}
14. c3 {[%clk 0:03:03.6]} 14... Qc7 {[%clk 0:03:03.2]} 15. Bf4 {[%clk
0:03:03.2]} 15... Bd6 {[%clk 0:03:04.2]} 16. Be3 {[%clk 0:02:57.4]} 16... O-O-O
{[%clk 0:03:04.9]} 17. f4 {[%clk 0:02:50.6]} 17... Nd5 {[%clk 0:03:03.6]} 18.
Bd2 {[%clk 0:02:49.4]} 18... g5 {[%clk 0:03:04.3]} 19. fxg5 {[%clk 0:02:41]}
19... hxg5 {[%clk 0:03:06.2]} 20. Qf2 {[%clk 0:02:39.8]} 20... Nf4 {[%clk
0:03:06.8]} 21. Bxf4 {[%clk 0:02:36.4]} 21... Bxf4 {[%clk 0:03:08.7]} 22. b4
{[%clk 0:02:35.2]} 22... f5 {[%clk 0:03:07.6]} 23. b5 {[%clk 0:02:34.5]} 23...
Bg3 {[%clk 0:03:07.6]} 24. Qe2 {[%clk 0:02:32.7]} 24... Bh2+ {[%clk 0:03:08.7]}
25. Kh1 {[%clk 0:02:33.6]} 25... g4 {[%clk 0:03:10.2]} 26. Qxe6+ {[%clk
0:02:32.1]} 26... Kb8 {[%clk 0:03:10.7]} 27. Bxf5 {[%clk 0:02:31.9]} 27... Rde8
{[%clk 0:03:04.5]} 28. Qc4 {[%clk 0:02:23.4]} 28... gxh3 {[%clk 0:02:53.2]} 29.
Bxh3 {[%clk 0:02:25.3]} 29... Re3 {[%clk 0:02:53.4]} 30. bxc6 {[%clk 0:02:19.1]}
30... Rexh3 {[%clk 0:02:30]} 31. gxh3 {[%clk 0:02:18.4]} 31... Bg1 {[%clk
0:02:25.5]} 32. Qe2 {[%clk 0:02:03.6]} 32... Bxd4 {[%clk 0:00:54.8]} 33. cxd4
{[%clk 0:02:02.1]} 33... Rxh3+ {[%clk 0:00:55.5]} 34. Kg1 {[%clk 0:02:03.1]}
34... Qg7+ {[%clk 0:00:55]} 35. Qg2 {[%clk 0:01:55.9]} 35... Qxd4+ {[%clk
0:00:56.1]} 36. Rf2 {[%clk 0:01:42.6]} 36... Qxa1+ {[%clk 0:00:56.6]} 37. Qf1
{[%clk 0:01:43.8]} 37... Qg7+ {[%clk 0:00:33]} 38. Rg2 {[%clk 0:01:43.8]} 38...
Qd4+ {[%clk 0:00:33.8]} 39. Qf2 {[%clk 0:01:41.1]} 39... Qd1+ {[%clk 0:00:33.2]}
40. Qf1 {[%clk 0:01:39.9]} 40... Rh1+ {[%clk 0:00:34.4]} 41. Kxh1 {[%clk
0:01:41]} 41... Qxf1+ {[%clk 0:00:35.7]} 42. Kh2 {[%clk 0:01:42.4]} 42... bxc6
{[%clk 0:00:36.1]} 43. a4 {[%clk 0:01:40.9]} 43... Qf4+ {[%clk 0:00:36.6]} 44.
Kh1 {[%clk 0:01:39.6]} 44... Qxa4 {[%clk 0:00:37.5]} 45. Rg8+ {[%clk 0:01:40.3]}
45... Kb7 {[%clk 0:00:38.6]} 46. Rg7+ {[%clk 0:01:41.6]} 46... Kb6 {[%clk
0:00:40]} 47. Rg3 {[%clk 0:01:42.4]} 47... c5 {[%clk 0:00:38.7]} 48. Kg2 {[%clk
0:01:43]} 48... Qe4+ {[%clk 0:00:39.9]} 49. Kf1 {[%clk 0:01:42.7]} 49... Qf4+
{[%clk 0:00:41]} 50. Kg2 {[%clk 0:01:44.1]} 50... Qxg3+ {[%clk 0:00:42.1]} 51.
Kxg3 {[%clk 0:01:45.5]} 51... Kb5 {[%clk 0:00:43.7]} 52. Kf3 {[%clk 0:01:46.5]}
52... Kb4 {[%clk 0:00:45.3]} 53. Ke2 {[%clk 0:01:47.5]} 53... Kb3 {[%clk
0:00:46.6]} 54. Kd2 {[%clk 0:01:46.4]} 54... c4 {[%clk 0:00:48.1]} 55. Kc1
{[%clk 0:01:47.5]} 55... Kc3 {[%clk 0:00:49.6]} 56. Kb1 {[%clk 0:01:47.9]} 56...
Kd2 {[%clk 0:00:50.9]} 57. Ka1 {[%clk 0:01:48.8]} 57... c3 {[%clk 0:00:52.4]}
58. Ka2 {[%clk 0:01:50]} 58... c2 {[%clk 0:00:54]} 59. Kb3 {[%clk 0:01:51.4]}
59... c1=Q {[%clk 0:00:55.6]} 60. Ka2 {[%clk 0:01:52.5]} 60... Qc4+ {[%clk
0:00:55.9]} 61. Kb1 {[%clk 0:01:53.3]} 61... Qb5+ {[%clk 0:00:56.9]} 62. Ka2
{[%clk 0:01:53.3]} 62... Kc2 {[%clk 0:00:58.3]} 63. Ka3 {[%clk 0:01:54.6]} 63...
Qb3# {[%clk 0:00:59.6]} 0-1

[Event "*** Titled Tuesday Blitz"]
[Site "Chess.com"]
[Date "2018.11.06"]
[Round "8"]
[White "Me_ch_an"]
[Black "norwaytoadog"]
[Result "1-0"]
[WhiteElo "2233"]
[BlackElo "2142"]
[TimeControl "180+2"]
[EndTime "14:50:32 PST"]
[Termination "Me_ch_an won by checkmate"]

1. e4 {[%clk 0:03:01.9]} 1... e5 {[%clk 0:02:52.2]} 2. Nf3 {[%clk 0:02:59.8]}
2... Nc6 {[%clk 0:02:53.6]} 3. Bb5 {[%clk 0:02:59.5]} 3... a6 {[%clk 0:02:54.9]}
4. Ba4 {[%clk 0:02:59.8]} 4... Nf6 {[%clk 0:02:55.9]} 5. Qe2 {[%clk 0:02:59.4]}
5... b5 {[%clk 0:02:55.4]} 6. Bb3 {[%clk 0:02:59.8]} 6... Be7 {[%clk 0:02:55.9]}
7. O-O {[%clk 0:03:00.2]} 7... O-O {[%clk 0:02:57]} 8. c3 {[%clk 0:02:59.6]}
8... d6 {[%clk 0:02:47.1]} 9. Rd1 {[%clk 0:02:59.3]} 9... Bb7 {[%clk 0:02:44.4]}
10. d3 {[%clk 0:02:59.3]} 10... Na5 {[%clk 0:02:41.8]} 11. Bc2 {[%clk
0:02:59.5]} 11... c5 {[%clk 0:02:42.6]} 12. Nbd2 {[%clk 0:02:58.8]} 12... Qc7
{[%clk 0:02:42]} 13. Nf1 {[%clk 0:02:58.8]} 13... Rfe8 {[%clk 0:02:38.8]} 14.
Ng3 {[%clk 0:02:58.7]} 14... Bf8 {[%clk 0:02:32.8]} 15. Nf5 {[%clk 0:02:55.7]}
15... d5 {[%clk 0:02:29.5]} 16. Bg5 {[%clk 0:02:53.5]} 16... Qb6 {[%clk
0:01:48.9]} 17. h3 {[%clk 0:02:42.1]} 17... c4 {[%clk 0:01:41.2]} 18. b4 {[%clk
0:02:05.6]} 18... cxd3 {[%clk 0:01:37]} 19. Bxd3 {[%clk 0:02:03.9]} 19... dxe4
{[%clk 0:01:15.3]} 20. Bxe4 {[%clk 0:01:47.8]} 20... Nxe4 {[%clk 0:01:00]} 21.
bxa5 {[%clk 0:01:46.6]} 21... Qg6 {[%clk 0:00:37.7]} 22. N5h4 {[%clk 0:01:39.5]}
22... Qc6 {[%clk 0:00:19.7]} 23. Bd2 {[%clk 0:00:58.2]} 23... Rad8 {[%clk
0:00:16.1]} 24. Rac1 {[%clk 0:00:53.3]} 24... Bc5 {[%clk 0:00:16.3]} 25. Be3
{[%clk 0:00:52.8]} 25... Ba3 {[%clk 0:00:15.4]} 26. Rxd8 {[%clk 0:00:52]} 26...
Rxd8 {[%clk 0:00:14.8]} 27. Rd1 {[%clk 0:00:52.9]} 27... Rxd1+ {[%clk
0:00:13.1]} 28. Qxd1 {[%clk 0:00:54.8]} 28... Nxc3 {[%clk 0:00:13.6]} 29. Qd8+
{[%clk 0:00:53.7]} 29... Bf8 {[%clk 0:00:14.6]} 30. Nf5 {[%clk 0:00:49.6]} 30...
Qe6 {[%clk 0:00:13.3]} 31. Bc5 {[%clk 0:00:45]} 31... Ne2+ {[%clk 0:00:08.5]}
32. Kh2 {[%clk 0:00:42.1]} 32... h5 {[%clk 0:00:09]} 33. Qxf8+ {[%clk
0:00:39.1]} 33... Kh7 {[%clk 0:00:10.3]} 34. Qxg7# {[%clk 0:00:40.3]} 1-0

[Event "*** Titled Tuesday Blitz"]
[Site "Chess.com"]
[Date "2018.11.06"]
[Round "8"]
[White "juniortay"]
[Black "Caterpiller35"]
[Result "1-0"]
[WhiteElo "2361"]
[BlackElo "2255"]
[TimeControl "180+2"]
[EndTime "14:50:35 PST"]
[Termination "juniortay won by resignation"]

1. e4 {[%clk 0:03:01.9]} 1... c5 {[%clk 0:03:00.8]} 2. Nf3 {[%clk 0:03:01.9]}
2... g6 {[%clk 0:03:02]} 3. d4 {[%clk 0:03:02.8]} 3... cxd4 {[%clk 0:03:03.9]}
4. c3 {[%clk 0:03:04.5]} 4... d3 {[%clk 0:03:04.3]} 5. c4 {[%clk 0:03:05.3]}
5... Bg7 {[%clk 0:03:05.7]} 6. Nc3 {[%clk 0:03:06.7]} 6... Bxc3+ {[%clk
0:03:06.2]} 7. bxc3 {[%clk 0:03:07.2]} 7... Nc6 {[%clk 0:03:02.8]} 8. Bxd3
{[%clk 0:03:08.1]} 8... Nf6 {[%clk 0:03:03.5]} 9. O-O {[%clk 0:03:08.3]} 9...
Qa5 {[%clk 0:03:03.2]} 10. Qe2 {[%clk 0:03:05.8]} 10... d6 {[%clk 0:03:03.8]}
11. h3 {[%clk 0:03:05.2]} 11... O-O {[%clk 0:03:04.3]} 12. Re1 {[%clk
0:03:02.2]} 12... Be6 {[%clk 0:03:03.2]} 13. Rb1 {[%clk 0:03:00.7]} 13... b6
{[%clk 0:02:52]} 14. Rb5 {[%clk 0:02:52.7]} 14... Qa4 {[%clk 0:02:52.9]} 15. e5
{[%clk 0:02:21.3]} 15... dxe5 {[%clk 0:02:50.7]} 16. Nxe5 {[%clk 0:02:23.2]}
16... Nxe5 {[%clk 0:02:51.4]} 17. Rxe5 {[%clk 0:02:24.8]} 17... Rac8 {[%clk
0:02:44.6]} 18. Bh6 {[%clk 0:02:21.2]} 18... Bxc4 {[%clk 0:02:32.4]} 19. Rxe7
{[%clk 0:02:17.4]} 19... Bxd3 {[%clk 0:02:28.4]} 20. Qxd3 {[%clk 0:02:19.3]}
20... Rfe8 {[%clk 0:02:25.6]} 21. Rxe8+ {[%clk 0:01:54.8]} 21... Rxe8 {[%clk
0:02:27.5]} 22. Rxe8+ {[%clk 0:01:42.3]} 22... Nxe8 {[%clk 0:02:19.3]} 23. Qd8
{[%clk 0:01:38.5]} 23... Qc6 {[%clk 0:02:15.2]} 24. Qe7 {[%clk 0:01:31.7]} 24...
Ng7 {[%clk 0:02:02.1]} 25. Qxa7 {[%clk 0:01:19.3]} 25... b5 {[%clk 0:01:47.4]}
26. Qe7 {[%clk 0:01:10.6]} 26... Qe6 {[%clk 0:01:37.8]} 27. Qd8+ {[%clk
0:01:05.1]} 27... Ne8 {[%clk 0:01:35.6]} 28. Qd4 {[%clk 0:00:55.2]} 28... f6
{[%clk 0:01:35.1]} 29. Qa7 {[%clk 0:00:55.7]} 29... Qf7 {[%clk 0:01:31.1]} 30.
Qb8 {[%clk 0:00:54.7]} 30... Qd7 {[%clk 0:01:30.5]} 31. Be3 {[%clk 0:00:44.9]}
31... Kf7 {[%clk 0:01:30.7]} 32. Bd4 {[%clk 0:00:44.3]} 32... h5 {[%clk
0:01:26.9]} 33. Qb6 {[%clk 0:00:43.5]} 33... g5 {[%clk 0:01:26.9]} 34. Qc5
{[%clk 0:00:40.4]} 34... Nd6 {[%clk 0:01:22.3]} 35. Qd5+ {[%clk 0:00:41]} 35...
Qe6 {[%clk 0:01:23.1]} 36. Qxe6+ {[%clk 0:00:23.2]} 36... Kxe6 {[%clk 0:01:25]}
37. Kf1 {[%clk 0:00:24.4]} 37... Nf5 {[%clk 0:01:24.1]} 38. Ke2 {[%clk 0:00:24]}
38... b4 {[%clk 0:01:21.9]} 39. Kd3 {[%clk 0:00:23.3]} 39... bxc3 {[%clk
0:01:22.5]} 40. Bxc3 {[%clk 0:00:23.6]} 40... Nh4 {[%clk 0:01:21.5]} 41. g3
{[%clk 0:00:23]} 41... Ng6 {[%clk 0:01:18.5]} 42. a4 {[%clk 0:00:23.1]} 42...
Ne7 {[%clk 0:01:19.2]} 43. a5 {[%clk 0:00:23.5]} 43... f5 {[%clk 0:01:20.1]} 44.
a6 {[%clk 0:00:23.8]} 1-0